bitfinex-derivatives/quotes_ETHF0:USTF0_20241230
["timestamp","ask_amount","ask_price","bid_price","bid_amount"]
[1735529350342,5.0979,3412.2,3411.9,0.29374]
[1735529351049,5.0979,3412.2,3411.8,0.29375]
[1735529351349,5.0979,3412.2,3411.9,0.29374]
[1735529351647,5.0979,3412.2,3411.7,1.7677]
[1735529351849,5.39162,3412.2,3411.9,0.29374]
[1735529352744,5.0979,3412.2,3411.9,0.29374]
[1735529354050,1.8901,3412.2,3411.9,0.29374]
[1735529354252,2.18382,3412.2,3411.6,3.2078]
[1735529354448,2.18382,3412.2,3411.8,0.29375]
[1735529354650,2.18382,3412.2,3411.6,3.2078]
[1735529354850,2.18382,3412.2,3411.9,0.29374]
[1735529355752,1.8901,3412.2,3411.9,0.29374]
[1735529355957,1.8901,3412.2,3412.0,0.29374]
[1735529357555,2.18383,3412.2,3411.6,3.2078]
[1735529357758,1.8901,3412.2,3411.9,0.29374]
[1735529358460,1.8901,3412.2,3411.6,3.2078]
[1735529358661,1.8901,3412.2,3412.0,0.29374]
[1735529359763,2.18382,3412.2,3412.0,0.29374]
[1735529360065,2.18382,3412.2,3411.6,3.2078]
[1735529360066,1.8901,3412.2,3412.1,0.29373]
[1735529360765,3.2078,3412.4,3412.3,0.29371]
[1735529364565,3.2078,3412.4,3411.8,0.9098]
[1735529364856,0.29373,3412.1,3411.7,0.29376]
[1735529365063,1.8267,3412.0,3411.7,0.29376]
[1735529365260,2.7427,3412.0,3411.6,12.33670775]
[1735529365463,0.29375,3411.9,3411.6,12.33670775]
[1735529365764,2.7427,3412.0,3411.6,3.2078]
[1735529365965,0.29376,3411.7,3411.6,3.2078]
[1735529366158,0.29376,3411.7,3411.4,0.29378]
[1735529367259,3.2078,3411.9,3411.2,0.2938]
[1735529367559,0.29377,3411.6,3411.1,3.2078]
[1735529367861,1.25468,3411.5,3411.2,0.2938]
[1735529368061,2.15608,3411.5,3411.2,0.2938]
[1735529368454,1.8623,3411.5,3411.1,3.2078]
[1735529368657,1.8623,3411.5,3411.4,0.29379]
[1735529374268,0.9609,3411.5,3411.4,0.29379]
[1735529374463,0.9723,3411.8,3411.7,0.29376]
[1735529374859,0.9723,3411.8,3411.7,21.59376]
[1735529376065,0.9723,3411.8,3411.7,0.29376]
[1735529381472,0.29377,3411.7,3411.5,0.29378]
[1735529381669,1.24557,3411.7,3411.4,3.50159]
[1735529381970,0.9518,3411.7,3411.6,0.29377]
[1735529383866,1.24556,3411.7,3411.6,0.29377]
[1735529384068,1.24556,3411.7,3411.5,0.29378]
[1735529385278,0.9518,3411.7,3411.4,3.2078]
[1735529385570,0.29378,3411.5,3411.4,3.2078]
[1735529385776,0.29196066,3411.5,3411.4,3.2078]
[1735529389865,2.30374926,3411.6,3411.4,3.2078]
[1735529390064,2.30374926,3411.6,3411.5,0.29378]
[1735529391375,0.29377,3411.6,3411.5,0.29378]
[1735529391576,0.29378,3411.5,3411.4,3.2078]
[1735529392273,2.59752926,3411.5,3411.4,3.2078]
[1735529392477,2.30374926,3411.5,3411.4,3.2078]
[1735529392670,2.30374926,3411.5,3411.4,3.50159]
[1735529393378,2.30374926,3411.6,3411.4,8.94955783]
[1735529393782,2.30374926,3411.6,3411.4,8.65576783]
[1735529394077,2.30374926,3411.6,3411.5,0.29378]
[1735529394973,2.30374926,3411.6,3411.4,0.29378]
[1735529395173,2.30374926,3411.6,3411.5,0.29378]
[1735529396480,3.25554926,3411.7,3411.6,0.29377]
[1735529399183,3.25554926,3411.7,3411.5,0.29377]
[1735529400287,3.25554926,3411.7,3411.6,0.29377]
[1735529402183,0.9518,3411.7,3411.6,0.29377]
[1735529404986,2.30374926,3411.8,3411.6,3.2078]
[1735529405187,2.30374926,3411.8,3411.7,0.29376]
[1735529406477,2.30374926,3411.8,3411.7,5.29376]
[1735529406677,2.30374926,3412.0,3411.9,0.29375]
[1735529406889,2.30374926,3412.0,3411.9,2.64573525]
[1735529407081,2.30374926,3412.0,3411.9,23.94573525]
[1735529407787,2.30374926,3412.0,3411.9,28.94573525]
[1735529407978,3.45869023,3412.2,3412.1,0.29373]
[1735529408179,2.30569032,3412.3,3412.1,3.2078]
[1735529408385,2.30569032,3412.3,3412.2,2.64570525]
[1735529409676,3.08176,3412.9,3412.6,0.29368]
[1735529410586,3.08176,3412.9,3412.3,3.2078]
[1735529410786,3.08176,3412.9,3412.4,6.92261675]
[1735529410979,3.08176,3412.9,3412.6,0.29368]
[1735529411385,3.08176,3412.9,3412.7,0.29368]
[1735529411584,2.7881,3412.9,3412.4,6.92261675]
[1735529412088,0.29369,3412.6,3412.3,3.50151]
[1735529413789,3.45869023,3412.8,3412.3,3.50151]
[1735529413989,0.2937,3412.5,3412.3,3.2078]
[1735529414287,0.9816,3412.4,3412.3,3.2078]
[1735529414489,1.9697,3412.4,3412.3,3.2078]
[1735529416886,1.9697,3412.4,3412.3,3.50151]
[1735529417686,3.45869023,3412.8,3412.7,0.29368]
[1735529417881,4.44049023,3412.8,3412.7,3.50148]
[1735529418285,3.45869023,3412.8,3412.7,3.50148]
[1735529418690,2.94599023,3412.8,3412.7,8.50148]
[1735529418990,2.94599023,3413.3,3413.2,0.29363]
[1735529419189,2.94599023,3413.3,3413.2,5.85341525]
[1735529419586,2.94599023,3413.3,3413.2,3.2078]
[1735529419783,0.29366,3413.0,3412.8,3.2078]
[1735529419988,0.29367,3412.8,3412.7,9.23015567]
[1735529420492,1.24737,3412.8,3412.7,9.23015567]
[1735529420888,0.9537,3412.8,3412.7,9.23015567]
[1735529421082,0.9537,3412.8,3412.7,0.29368]
[1735529421392,0.29365,3413.1,3412.8,0.29366]
[1735529421692,0.9537,3413.0,3412.8,3.50146]
[1735529421893,1.8675,3413.0,3412.8,3.50146]
[1735529422394,1.8675,3413.0,3412.9,0.29366]
[1735529422782,1.8675,3413.0,3412.8,3.2078]
[1735529422989,0.9357,3412.9,3412.8,3.2078]
[1735529423486,0.9357,3412.9,3412.7,0.29367]
[1735529423686,0.9357,3412.9,3412.8,0.29367]
[1735529425293,0.9357,3412.9,3412.6,2.35198525]
[1735529425495,0.9357,3412.9,3412.7,0.29367]
[1735529426491,1.22936,3412.9,3412.6,2.64566525]
[1735529427098,0.29368,3412.7,3412.6,2.35198525]
[1735529427291,0.29368,3412.7,3412.4,3.5015]
[1735529427491,0.29367,3412.8,3412.4,3.2078]
[1735529427693,0.9357,3412.9,3412.4,3.2078]
[1735529427899,0.29369,3412.5,3412.4,3.2078]
[1735529429891,0.29369,3412.6,3412.3,0.29371]
[1735529430087,0.9514,3412.4,3412.3,0.29371]
[1735529430294,0.9514,3412.4,3412.0,2.35198525]
[1735529430504,0.29374,3412.1,3411.7,6.90981641]
[1735529430798,0.9233,3412.0,3411.8,0.29375]
[1735529431394,1.21704,3412.0,3411.8,0.29375]
[1735529432894,0.9233,3412.0,3411.6,4.29197448]
[1735529433102,0.9233,3412.0,3411.6,3.99820448]
[1735529433297,0.9233,3412.0,3411.6,4.29197448]
[1735529433499,0.29376,3411.8,3411.6,4.29197448]
[1735529433699,1.9768,3411.7,3411.6,4.29197448]
[1735529435102,1.9768,3411.7,3411.6,3.99820448]
[1735529435297,1.9768,3411.7,3411.6,4.29197448]
[1735529435490,1.9768,3411.7,3411.6,3.99820448]
[1735529435694,0.29376,3411.8,3411.6,4.29197448]
[1735529436097,0.9233,3412.0,3411.6,3.99820448]
[1735529436299,0.29376,3411.7,3411.6,3.99820448]
[1735529438694,0.29376,3411.8,3411.6,3.99820448]
[1735529438891,0.9063,3411.7,3411.6,3.99820448]
[1735529440099,0.9063,3411.7,3411.3,3.2078]
[1735529440701,0.9063,3411.7,3411.6,0.29377]
[1735529440899,7.8141008,3412.5,3411.6,2.35198525]
[1735529441097,4.6063008,3412.5,3412.4,0.2937]
[1735529441394,4.6063008,3412.5,3412.4,21.5937]
[1735529441601,4.6063008,3412.5,3412.4,22.515]
[1735529442302,3.2078,3412.9,3412.8,0.29367]
[1735529442695,3.50146,3412.9,3412.4,22.2213]
[1735529442895,3.50146,3412.9,3412.6,0.29368]
[1735529443096,3.50146,3412.9,3412.4,22.2213]
[1735529443295,3.50146,3412.9,3412.6,0.29369]
[1735529443495,0.29368,3412.7,3412.4,0.2937]
[1735529443704,1.9354,3412.6,3412.4,0.2937]
[1735529444003,2.8187,3412.6,3412.4,0.2937]
[1735529444404,3.11239,3412.6,3412.3,0.29371]
[1735529444608,3.11239,3412.6,3412.2,6.90981641]
[1735529444609,2.8187,3412.6,3412.4,0.2937]
[1735529444810,2.8187,3412.6,3412.1,0.29373]
[1735529445009,2.8187,3412.6,3412.0,2.35198525]
[1735529445307,2.8187,3412.6,3412.4,0.2937]
[1735529446209,2.8187,3412.6,3412.0,2.35198525]
[1735529446411,2.8187,3412.6,3412.5,0.29369]
[1735529450007,2.8187,3412.6,3412.4,0.2937]
[1735529450207,2.8187,3412.6,3412.5,0.29369]
[1735529453018,2.8187,3412.6,3412.1,21.3]
[1735529453214,2.8187,3412.6,3412.5,0.29369]
[1735529456014,3.2078,3412.9,3412.3,2.35198525]
[1735529456214,3.2078,3412.9,3412.8,0.29367]
[1735529456720,2.8274,3413.2,3413.0,0.29364]
[1735529457419,3.12104,3413.2,3412.9,0.29366]
[1735529458415,2.8274,3413.2,3412.4,4.609045]
[1735529458616,0.29368,3412.8,3412.5,0.29369]
[1735529458917,0.29368,3412.7,3412.5,0.29369]
[1735529459111,1.7884,3412.6,3412.4,4.609045]
[1735529459311,1.7884,3412.6,3412.5,0.29369]
[1735529460723,1.7884,3412.6,3412.1,4.609045]
[1735529460924,1.7884,3412.6,3412.5,0.29369]
[1735529462023,1.7884,3412.6,3412.1,4.609045]
[1735529462623,0.29372,3412.2,3412.1,4.609045]
[1735529462824,0.29371,3412.3,3412.1,4.609045]
[1735529463127,3.2078,3412.5,3412.1,4.902775]
[1735529463720,0.29372,3412.3,3412.0,0.29373]
[1735529463924,3.2078,3412.1,3412.0,0.29373]
[1735529466324,0.9619,3412.2,3412.1,0.29373]
[1735529466325,4.1697,3412.2,3412.1,0.29373]
[1735529469328,4.1697,3412.2,3411.8,4.609045]
[1735529469634,0.29375,3411.9,3411.8,4.609045]
[1735529470426,0.29375,3411.9,3411.8,4.599045]
[1735529470931,0.29375,3411.9,3411.7,0.29376]
[1735529471121,1.0025,3412.0,3411.5,0.9303]
[1735529471329,1.0025,3412.0,3411.4,10.11761641]
[1735529471834,0.29378,3411.5,3411.4,10.11761641]
[1735529472223,0.29378,3411.6,3411.4,10.11761641]
[1735529472420,2.0402,3411.5,3411.4,10.41140641]
[1735529472633,2.0402,3411.5,3411.4,3.50159]
[1735529473534,2.0402,3411.5,3411.4,3.2078]
[1735529474730,2.0402,3411.5,3411.1,35.49681693]
[1735529475031,2.0402,3411.5,3411.4,0.29379]
[1735529477131,2.0402,3411.5,3411.2,6.90981641]
[1735529477332,1.0265,3411.4,3411.3,0.2938]
[1735529477527,1.0265,3411.4,3411.2,6.90981641]
[1735529477738,1.32029,3411.4,3411.2,6.90981641]
[1735529477932,1.0265,3411.4,3411.2,7.20361641]
[1735529478234,0.2938,3411.3,3411.2,6.90981641]
[1735529478735,4.2343,3411.4,3410.9,7.20364641]
[1735529479031,0.29382,3411.1,3410.9,7.20364641]
[1735529479239,1.30252,3411.0,3410.9,6.90981641]
[1735529479430,0.2938,3411.3,3411.0,0.29382]
[1735529479633,0.9822,3411.3,3411.2,0.29381]
[1735529480235,0.9822,3411.3,3410.9,6.90981641]
[1735529480442,0.29382,3411.0,3410.9,6.90981641]
[1735529480640,0.29382,3411.0,3410.7,0.29384]
[1735529481038,1.0087,3410.9,3410.8,0.29384]
[1735529481639,0.9822,3411.3,3411.1,0.29381]
[1735529481840,1.985,3411.3,3411.1,0.29381]
[1735529482840,2.2788,3411.3,3411.0,0.29382]
[1735529483940,1.985,3411.3,3410.7,0.9599]
[1735529484141,0.29382,3411.1,3410.9,0.29383]
[1735529486043,0.29382,3411.1,3410.9,0.29283]
[1735529486543,0.29382,3411.1,3410.8,0.29384]
[1735529486741,0.29383,3411.0,3410.8,0.29384]
[1735529487244,0.29383,3411.0,3410.7,0.29385]
[1735529487940,0.29383,3410.9,3410.7,0.29385]
[1735529488144,0.9974,3410.8,3410.7,0.29385]
[1735529491240,0.29381,3411.2,3410.6,0.9677]
[1735529491453,1.0054,3411.2,3410.6,0.9677]
[1735529491642,1.0054,3411.2,3411.1,0.29382]
[1735529491952,1.0054,3411.2,3411.1,0.29282]
[1735529492742,1.29921,3411.2,3410.7,21.3]
[1735529492941,2.31351,3411.2,3410.7,21.3]
[1735529493651,0.29382,3411.1,3410.9,0.29383]
[1735529495349,2.0197,3411.2,3410.6,0.9677]
[1735529495550,2.0197,3411.2,3410.5,3.2078]
[1735529495844,0.29385,3410.7,3410.4,0.29387]
[1735529496051,0.9777,3410.6,3410.5,0.29387]
[1735529496250,2.9828,3410.6,3410.5,0.29387]
[1735529501156,2.0051,3410.6,3410.5,0.29387]
[1735529502647,2.29896,3410.6,3410.3,0.9333]
[1735529502953,2.0051,3410.6,3410.4,0.29388]
[1735529503153,2.0051,3410.6,3410.5,0.29387]
[1735529503354,2.9636,3410.6,3410.5,0.29387]
[1735529506353,2.9636,3410.6,3410.4,0.29387]
[1735529506354,3.25746,3410.6,3410.4,0.29387]
[1735529506855,2.9636,3410.6,3410.3,0.9333]
[1735529507055,2.0051,3410.6,3410.5,0.29387]
[1735529507252,0.9777,3410.6,3410.5,0.29387]
[1735529507456,3.50165,3410.8,3410.6,0.29386]
[1735529507762,3.50165,3410.8,3410.5,0.29386]
[1735529508552,3.50165,3410.8,3410.3,0.9333]
[1735529508755,3.50165,3410.8,3410.6,0.29386]
[1735529509262,0.29385,3410.7,3410.5,0.29386]
[1735529511560,0.29385,3410.7,3410.4,0.29388]
[1735529511760,0.29385,3410.7,3410.5,0.29386]
[1735529513162,3.2078,3410.8,3410.3,0.9333]
[1735529513457,0.29387,3410.5,3410.3,1.22718]
[1735529513864,1.8832,3410.4,3410.3,1.22718]
[1735529514058,2.17708,3410.4,3410.2,0.29389]
[1735529514362,1.8832,3410.4,3410.2,0.29389]
[1735529514564,2.17708,3410.4,3410.2,0.29389]
[1735529514961,1.8832,3410.4,3410.0,8.09168627]
[1735529515159,1.8832,3410.4,3410.0,4.38581]
[1735529515467,0.29389,3410.2,3410.0,4.38581]
[1735529515765,0.29389,3410.2,3410.0,3.2078]
[1735529515963,0.29389,3410.2,3410.0,3.50171]
[1735529516566,0.29389,3410.2,3410.0,3.2078]
[1735529517064,0.29389,3410.2,3410.0,3.50171]
[1735529518367,0.2939,3410.2,3410.0,3.2078]
[1735529518572,0.2939,3410.2,3410.0,3.50171]
[1735529519163,0.29389,3410.2,3410.0,3.2078]
[1735529519864,0.9596,3410.3,3410.0,3.2078]
[1735529520066,0.29389,3410.2,3410.0,3.2078]
[1735529520463,1.8832,3410.4,3410.0,3.2078]
[1735529520667,0.29389,3410.2,3410.0,3.50171]
[1735529521266,0.29389,3410.2,3410.0,3.2078]
[1735529521667,0.29389,3410.2,3409.9,3.58649525]
[1735529521964,0.29391,3410.0,3409.9,0.9406]
[1735529522162,0.29391,3410.0,3409.8,6.9232174]
[1735529522362,0.29394,3409.7,3409.6,3.2078]
[1735529522559,0.29394,3409.7,3409.6,24.5078]
[1735529523166,0.29394,3409.7,3409.6,3.2078]
[1735529524162,5.0338,3409.8,3409.4,6.92758699]
[1735529524468,0.29395,3409.5,3409.4,6.92758699]
[1735529525264,0.29397,3409.4,3409.1,8.11896699]
[1735529525465,0.29397,3409.3,3409.1,7.82498699]
[1735529525768,1.19298,3409.2,3409.1,6.92758699]
[1735529525969,0.899,3409.2,3409.1,6.92758699]
[1735529526369,0.899,3409.2,3409.0,0.294]
[1735529526566,0.899,3409.2,3409.1,0.29399]
[1735529526767,4.1018,3409.4,3409.3,0.29397]
[1735529527166,3.2078,3409.8,3409.2,2.35198525]
[1735529527465,3.45472147,3410.1,3410.0,0.29391]
[1735529527770,3.45472147,3410.1,3410.0,5.85369525]
[1735529528167,3.45472147,3410.1,3410.0,27.15369525]
[1735529528368,0.8936,3410.4,3410.0,26.85978525]
[1735529528571,0.8936,3410.4,3410.3,0.29388]
[1735529533573,1.18748,3410.4,3410.1,6.91678461]
[1735529533874,1.20299,3410.3,3410.1,6.91678461]
[1735529534076,0.8885,3410.2,3410.0,7.21068461]
[1735529534367,0.8885,3410.2,3410.0,0.2939]
[1735529535073,0.8885,3410.2,3409.7,2.35198525]
[1735529535273,1.18239,3410.2,3409.9,0.29391]
[1735529536368,0.8885,3410.2,3410.0,0.2939]
[1735529536676,0.8885,3410.2,3409.8,0.29393]
[1735529536870,0.8885,3410.2,3409.7,2.35198525]
[1735529537075,0.29391,3410.0,3409.6,3.50174]
[1735529537479,0.8745,3409.9,3409.6,3.50174]
[1735529537673,1.16842,3409.9,3409.6,3.50174]
[1735529538076,0.8745,3409.9,3409.6,3.2078]
[1735529538373,1.16842,3409.9,3409.6,3.50174]
[1735529538777,0.8745,3409.9,3409.7,0.29393]
[1735529541082,1.16842,3409.9,3409.7,0.29393]
[1735529541279,1.16842,3409.9,3409.6,3.2078]
[1735529541579,0.29393,3409.8,3409.6,3.2078]
[1735529541969,0.8745,3409.9,3409.6,3.2078]
[1735529542175,2.30133458,3410.2,3410.1,0.2939]
[1735529542479,2.2191699,3410.2,3410.1,2.64588525]
[1735529542677,2.2191699,3410.2,3410.1,23.94588525]
[1735529543180,6.95366187,3410.7,3410.4,0.29387]
[1735529543682,0.29388,3410.4,3410.2,0.29388]
[1735529543883,0.29386,3410.6,3410.2,0.29388]
[1735529544081,0.29387,3410.5,3410.2,0.29388]
[1735529544276,0.8831,3410.5,3410.1,23.65198525]
[1735529544471,3.2078,3410.7,3410.4,2.35198525]
[1735529544676,3.2078,3410.7,3410.6,0.29386]
[1735529544981,0.29388,3410.4,3410.1,2.64588525]
[1735529545280,1.22429,3410.3,3410.0,3.50171]
[1735529545675,0.9304,3410.3,3410.1,7.21498513]
[1735529546080,0.9304,3410.3,3410.1,6.92108513]
[1735529546283,0.9304,3410.3,3410.2,0.29389]
[1735529550984,0.9304,3410.3,3410.1,2.35198525]
[1735529551186,0.9304,3410.3,3410.1,2.64588525]
[1735529551486,0.9304,3410.3,3410.1,2.35198525]
[1735529551685,0.9304,3410.3,3410.1,2.64588525]
[1735529551986,0.9416,3410.5,3410.1,2.35198525]
[1735529552189,0.9416,3410.5,3410.3,0.29388]
[1735529552390,0.9416,3410.5,3410.1,2.35198525]
[1735529552581,0.29389,3410.2,3410.0,0.29391]
[1735529552782,0.2939,3410.2,3409.9,0.29392]
[1735529553079,1.23547,3410.5,3410.2,0.29388]
[1735529553281,0.9211,3410.4,3410.2,0.29388]
[1735529553579,0.9211,3410.4,3410.3,0.29388]
[1735529554189,0.29391,3410.1,3409.8,13.64536738]
[1735529554388,0.29391,3410.1,3410.0,6.92286213]
[1735529554791,0.29391,3410.1,3409.8,6.72250525]
[1735529555486,0.9211,3410.4,3409.8,6.42858525]
[1735529555690,0.2939,3410.2,3409.9,0.29391]
[1735529555984,0.8704,3410.1,3409.9,0.29391]
[1735529556589,1.1643,3410.1,3409.9,0.29391]
[1735529556889,1.1643,3410.1,3409.8,6.72250525]
[1735529557790,1.1643,3410.1,3409.8,3.51470525]
[1735529557992,0.29391,3410.0,3409.8,3.51470525]
[1735529558194,0.8665,3409.9,3409.7,6.92401736]
[1735529558399,2.07942,3409.9,3409.7,7.21794736]
[1735529559001,0.29393,3409.8,3409.7,6.92401736]
[1735529559795,0.29394,3409.7,3409.6,3.2078]
[1735529560892,0.29396,3409.5,3409.3,0.29397]
[1735529561092,0.8996,3409.4,3409.2,2.35198525]
[1735529561303,2.07657,3409.4,3409.2,2.64596525]
[1735529561504,2.07657,3409.4,3409.3,6.92620194]
[1735529561697,1.7826,3409.4,3409.3,6.92620194]
[1735529561998,1.7826,3409.4,3409.3,7.22017194]
[1735529562203,3.2078,3409.8,3409.3,6.92620194]
[1735529562405,4.0908,3409.8,3409.6,0.29394]
[1735529563006,0.29396,3409.5,3409.3,0.29397]
[1735529563494,0.29396,3409.5,3409.2,9.27818719]
[1735529563693,0.29396,3409.5,3409.2,9.57215719]
[1735529563898,0.29396,3409.4,3409.2,9.57215719]
[1735529564100,0.29396,3409.5,3409.2,9.57215719]
[1735529564807,4.0908,3409.8,3409.2,9.27818719]
[1735529565106,4.0908,3409.8,3409.5,0.29395]
[1735529565107,0.29394,3409.7,3409.5,0.29395]
[1735529565909,0.29395,3409.6,3409.4,0.29396]
[1735529566606,0.29394,3409.7,3409.4,0.29396]
[1735529566911,0.29395,3409.6,3409.4,0.29396]
[1735529567308,4.0908,3409.8,3409.2,9.27818719]
[1735529567603,4.0908,3409.8,3409.5,2.35198525]
[1735529567805,3.4544562,3410.1,3409.6,0.9138]
[1735529568108,3.7483562,3410.1,3409.9,0.29391]
[1735529568610,5.0212,3410.2,3409.5,12.48598719]
[1735529568809,3.2078,3409.8,3409.5,6.92620194]
[1735529569109,0.29394,3409.6,3409.5,6.92620194]
[1735529569713,1.22874,3409.6,3409.5,6.92620194]
[1735529570904,1.22874,3409.6,3409.3,0.29397]
[1735529571409,1.22874,3409.6,3409.2,9.27818719]
[1735529571610,1.22874,3409.6,3409.4,0.29396]
[1735529572407,0.9348,3409.6,3409.5,0.29395]
[1735529572602,1.7263,3409.7,3409.5,0.29395]
[1735529572603,0.854,3409.7,3409.5,2.35198525]
[1735529572908,3.2078,3409.9,3409.8,0.29393]
[1735529573108,4.1338,3409.9,3409.8,0.29393]
[1735529573609,4.1338,3409.9,3409.7,0.29393]
[1735529574008,4.1338,3409.9,3409.8,0.29393]
[1735529574717,3.2078,3409.9,3409.8,2.64591525]
[1735529577013,3.2078,3410.2,3409.7,7.22013194]
[1735529577308,0.8714,3409.8,3409.7,6.92620194]
[1735529577712,1.16533,3409.8,3409.7,6.92620194]
[1735529578119,1.16533,3409.8,3409.7,5.46942071]
[1735529579317,0.29394,3409.7,3409.5,9.27818719]
[1735529579515,2.06564,3409.7,3409.5,9.27818719]
[1735529580312,2.06564,3409.7,3409.6,5.4706218]
[1735529581220,0.29392,3410.0,3409.7,0.29393]
[1735529581614,0.29392,3409.9,3409.7,0.29393]
[1735529582116,3.4544562,3410.0,3409.5,2.35198525]
[1735529582317,0.29393,3409.8,3409.6,0.29394]
[1735529582520,0.29393,3409.8,3409.5,2.64593525]
[1735529582719,0.29393,3409.8,3409.6,0.29394]
[1735529583522,2.7545,3410.1,3409.6,0.29394]
[1735529583920,0.29393,3409.8,3409.6,0.29394]
[1735529584924,0.29393,3409.8,3409.5,2.35198525]
[1735529585117,0.29393,3409.8,3409.5,2.64593525]
[1735529585818,0.29393,3409.8,3409.6,0.29394]
[1735529587022,0.29393,3409.8,3409.5,2.64593525]
[1735529587724,0.29393,3409.8,3409.6,0.29394]
[1735529590717,0.29393,3409.8,3409.6,4.9134378]
[1735529590918,3.2078,3409.9,3409.6,4.9134378]
[1735529591118,0.29393,3409.8,3409.6,4.9134378]
[1735529592726,0.29394,3409.7,3409.6,4.9134378]
[1735529593224,0.29394,3409.7,3409.6,4.6194978]
[1735529594825,0.29397,3409.4,3409.2,0.29397]
[1735529595029,0.8873,3409.3,3409.2,0.29397]
[1735529595527,0.29398,3409.2,3409.1,3.2078]
[1735529597022,1.18128,3409.3,3409.1,3.2078]
[1735529597222,0.29398,3409.2,3409.1,3.2078]
[1735529597425,0.29398,3409.2,3409.1,8.68179815]
[1735529597824,1.18127,3409.3,3409.1,8.68179815]
[1735529598422,1.18127,3409.3,3409.1,5.47399815]
[1735529598625,0.29398,3409.2,3409.1,4.62168976]
[1735529598825,0.8873,3409.3,3409.1,4.62168976]
[1735529599018,1.18127,3409.3,3409.1,4.91566976]
[1735529599223,1.18127,3409.3,3409.1,4.62168976]
[1735529599821,1.18127,3409.3,3409.2,4.62168976]
[1735529600026,1.18127,3409.3,3409.0,3.50179]
[1735529600233,0.8873,3409.3,3409.0,3.2078]
[1735529600527,1.8491,3409.6,3409.5,0.29395]
[1735529600727,0.9111,3409.6,3409.5,2.64593525]
[1735529601535,4.36739695,3409.6,3409.5,2.64593525]
[1735529602424,3.45629695,3409.6,3409.5,2.64593525]
[1735529602935,0.9395,3409.9,3409.5,14.71567696]
[1735529603429,0.9395,3409.9,3409.7,0.29393]
[1735529604124,0.9395,3409.9,3409.8,4.62263318]
[1735529604331,0.9395,3409.9,3409.8,4.91656318]
[1735529604728,0.9395,3409.9,3409.8,4.62263318]
[1735529604929,1.23342,3409.9,3409.5,2.64593525]
[1735529605135,0.9395,3409.9,3409.7,0.29393]
[1735529605434,0.9395,3409.9,3409.8,0.29393]
[1735529606229,0.9395,3409.9,3409.5,2.35198525]
[1735529606230,0.9395,3409.9,3409.7,0.29393]
[1735529606636,0.9395,3409.9,3409.8,0.29393]
[1735529606841,0.9395,3409.9,3409.8,4.62295325]
[1735529607932,1.23342,3409.9,3409.8,4.62295325]
[1735529608336,1.23342,3409.9,3409.7,4.62295325]
[1735529608932,0.9395,3409.9,3409.7,4.91688325]
[1735529609332,0.29393,3409.8,3409.7,4.62295325]
[1735529612036,3.45585161,3409.8,3409.7,0.29393]
[1735529612237,3.45585161,3409.8,3409.5,6.9749385]
[1735529612443,0.29394,3409.6,3409.5,6.9749385]
[1735529612642,0.29394,3409.6,3409.5,4.62295325]
[1735529613237,0.29394,3409.6,3409.5,12.36861384]
[1735529613846,0.29394,3409.7,3409.5,12.36861384]
[1735529614949,4.39535161,3409.9,3409.5,14.72059909]
[1735529615243,4.39535161,3409.9,3409.7,0.29393]
[1735529615746,4.39535161,3409.9,3409.6,12.36861384]
[1735529616142,4.39535161,3409.9,3409.7,0.29393]
[1735529616640,0.9395,3409.9,3409.8,4.62339301]
[1735529617741,3.45585161,3410.0,3409.9,0.29392]
[1735529617948,2.03675161,3410.0,3409.9,0.29392]
[1735529618150,4.60780215,3410.2,3409.9,5.0]
[1735529618337,4.60780215,3410.2,3410.1,2.64588525]
[1735529618744,6.91170323,3410.8,3410.7,0.29385]
[1735529618950,6.91170323,3410.8,3410.7,25.97665]
[1735529619341,6.91170323,3410.8,3410.7,31.21263054]
[1735529619537,5.75688226,3411.4,3410.7,31.21263054]
[1735529619740,5.75688226,3411.4,3411.3,0.2938]
[1735529620936,5.75688226,3411.4,3411.3,2.64578525]
[1735529621147,1.17169,3411.5,3411.3,5.4307034]
[1735529621344,0.29379,3411.4,3411.3,5.4307034]
[1735529621546,0.29379,3411.4,3411.3,4.0121034]
[1735529622140,0.2938,3411.3,3411.0,4.60927073]
[1735529622341,0.8779,3411.5,3411.0,4.60927073]
[1735529622342,1.15621,3411.2,3411.0,4.60927073]
[1735529622742,0.903,3411.1,3411.0,4.60927073]
[1735529623145,0.903,3411.1,3411.0,6.96125598]
[1735529623449,0.903,3411.1,3411.0,2.35198525]
[1735529623651,0.903,3411.1,3410.9,0.29383]
[1735529623851,0.903,3411.1,3410.8,7.81707073]
[1735529624051,0.29383,3411.0,3410.8,4.60927073]
[1735529624543,0.29383,3411.0,3410.6,7.21627001]
[1735529624544,0.903,3411.1,3410.6,4.60927073]
[1735529624745,0.29385,3410.7,3410.6,4.60927073]
[1735529625147,3.2078,3410.9,3410.4,6.92241001]
[1735529625343,3.50167,3410.5,3410.4,6.92241001]
[1735529625852,0.29389,3410.3,3409.9,0.29392]
[1735529626555,0.29391,3410.1,3409.8,10.13021001]
[1735529627449,3.2078,3410.5,3409.8,3.2078]
[1735529627654,0.29392,3409.9,3409.8,3.2078]
[1735529627850,0.29391,3410.0,3409.8,3.2078]
[1735529628051,0.29391,3410.0,3409.6,21.59394]
[1735529628052,3.2078,3410.1,3409.6,21.59394]
[1735529628258,0.29393,3409.8,3409.6,21.3]
[1735529629854,1.7561,3410.0,3409.4,6.92241001]
[1735529630159,0.29393,3409.9,3409.3,12.48219526]
[1735529630456,1.7561,3410.0,3409.4,21.3]
[1735529630755,2.05001,3410.0,3409.6,0.29394]
[1735529630957,1.7561,3410.0,3409.4,21.3]
[1735529631159,0.8842,3410.0,3409.6,2.35198525]
[1735529631458,0.8842,3410.0,3409.9,0.29392]
[1735529632459,4.076,3410.6,3410.4,0.29388]
[1735529632662,4.076,3410.6,3410.0,0.8776]